bitfinex-derivatives/quotes_ETHF0:USTF0_20250727
["timestamp","ask_amount","ask_price","bid_price","bid_amount"]
[1753634611515,1.0425,3840.5,3840.2,1.09702798]
[1753634611716,3.2078,3840.8,3840.6,1.0788]
[1753634611916,0.8023,3841.3,3840.6,1.0788]
[1753634612109,4.6281,3841.2,3841.1,1.59936]
[1753634612314,7.6063,3841.2,3841.1,4.2866]
[1753634612617,0.8023,3841.1,3840.5,3.2078]
[1753634612919,0.8424,3841.2,3840.5,3.2078]
[1753634613122,21.741,3841.1,3840.5,3.2078]
[1753634613418,0.8023,3840.3,3840.2,0.01822798]
[1753634613713,0.8023,3841.3,3840.6,0.52063]
[1753634613915,21.745,3841.2,3840.8,3.2078]
[1753634614214,21.745,3841.1,3840.8,3.2078]
[1753634614615,0.8023,3841.3,3840.8,3.2078]
[1753634614616,0.8023,3841.7,3840.8,8.2078]
[1753634614809,22.5393,3841.6,3841.2,3.2078]
[1753634615013,0.8023,3841.6,3841.2,3.2078]
[1753634615214,39.3148,3841.9,3841.3,0.52054]
[1753634615420,21.747,3841.8,3841.6,3.2078]
[1753634615718,21.747,3841.7,3841.6,3.2078]
[1753634615923,0.8023,3841.8,3841.6,3.2078]
[1753634616109,21.741,3841.7,3841.6,8.2078]
[1753634616313,21.741,3841.7,3841.6,8.7283]
[1753634616524,37.47,3841.9,3841.8,0.52047]
[1753634616817,21.74,3841.9,3841.6,8.2078]
[1753634617614,3.14558,3843.0,3841.6,9.65142813]
[1753634617823,0.52041,3842.3,3842.2,3.2078]
[1753634618017,1.32271,3842.3,3842.2,3.2078]
[1753634618326,23.05971,3842.3,3842.2,3.2078]
[1753634618614,24.4242,3842.3,3841.6,3.2078]
[1753634618820,0.52046,3841.9,3841.6,3.72829]
[1753634619123,0.52047,3841.8,3841.6,3.2078]
[1753634619418,21.732,3841.9,3841.6,3.72829]
[1753634619419,0.8023,3841.7,3841.6,3.72829]
[1753634619817,0.52042,3842.2,3841.8,0.52046]
[1753634620009,22.7795,3842.1,3841.9,0.52045]
[1753634620211,0.52046,3841.9,3841.7,0.52047]
[1753634620524,21.728,3841.8,3841.7,0.52048]
[1753634620726,0.8023,3842.0,3841.9,0.52045]
[1753634621122,22.5243,3842.0,3841.9,0.52045]
[1753634621324,21.722,3842.0,3841.6,3.2078]
[1753634621524,1.0425,3841.7,3841.6,3.7283]
[1753634621724,2.6872,3841.7,3841.6,3.7283]
[1753634622121,3.20768,3841.7,3841.6,3.2078]
[1753634622428,1.8448,3841.7,3841.6,3.7283]
[1753634622718,2.6872,3841.7,3841.6,3.7283]
[1753634622923,1.8448,3841.7,3841.6,3.7283]
[1753634623123,2.6872,3841.7,3841.6,3.7283]
[1753634623423,21.704,3841.7,3840.7,3.2078]
[1753634623725,0.8023,3842.6,3841.6,1.30125]
[1753634623919,22.7465,3842.5,3842.0,3.2078]
[1753634624114,1.0425,3842.9,3842.0,3.2078]
[1753634624314,0.8023,3842.8,3842.7,0.52035]
[1753634624519,22.4983,3842.8,3842.7,3.2078]
[1753634624718,23.01863,3842.8,3842.7,3.2078]
[1753634624919,2.36513,3842.8,3842.7,3.2078]
[1753634625118,3.20753,3842.8,3842.7,3.2078]
[1753634625331,3.20761,3842.2,3842.1,3.2078]
[1753634625623,24.90561,3842.2,3842.1,3.2078]
[1753634626821,24.3852,3842.2,3842.1,3.72823]
[1753634627128,24.3782,3842.2,3842.1,3.72823]
[1753634627320,1.0425,3842.7,3842.6,0.52036]
[1753634627523,0.52036,3842.6,3842.5,0.52037]
[1753634627826,1.8448,3842.6,3842.5,0.52037]
[1753634628521,2.6872,3842.6,3842.5,0.52037]
[1753634628730,3.20757,3842.5,3842.4,0.00889636]
[1753634628926,24.87457,3842.5,3842.4,0.00889636]
[1753634629427,3.20757,3842.5,3842.4,0.00889636]
[1753634629731,24.87257,3842.5,3842.4,0.00889636]
[1753634630427,3.20757,3842.5,3842.4,0.00889636]
[1753634630627,24.86657,3842.5,3842.4,0.00889636]
[1753634630824,22.97167,3842.5,3842.4,0.00889636]
[1753634631329,24.01417,3842.5,3842.4,0.00889636]
[1753634631930,24.01417,3842.5,3842.4,0.52928636]
[1753634632128,22.97667,3842.5,3842.4,0.00889636]
[1753634632329,24.86157,3842.5,3842.4,0.00889636]
[1753634632535,3.20757,3842.5,3842.4,0.00889636]
[1753634632833,24.84657,3842.5,3842.4,0.00889636]
[1753634633420,25.49657448,3842.5,3842.4,0.00889636]
[1753634634031,0.52048,3841.7,3841.6,3.2078]
[1753634634226,24.84168,3841.7,3841.6,3.2078]
[1753634634735,3.20768,3841.7,3841.6,3.2078]
[1753634635031,24.83468,3841.7,3841.6,3.2078]
[1753634635234,0.52054,3841.3,3841.2,3.2078]
[1753634635528,24.82974,3841.3,3841.2,3.2078]
[1753634636638,1.30139,3841.2,3840.8,3.2078]
[1753634636834,2.16529,3840.9,3840.8,3.2078]
[1753634637134,3.20786,3840.4,3840.3,3.2078]
[1753634637323,24.82586,3840.4,3840.3,3.2078]
[1753634638531,2.6872,3840.4,3840.3,3.2078]
[1753634638829,24.82686,3840.4,3840.3,3.2078]
[1753634639829,3.20786,3840.4,3840.3,3.2078]
[1753634640038,24.81586,3840.4,3840.3,3.2463]
[1753634640224,24.81286,3840.4,3840.3,3.2078]
[1753634640422,0.52067,3840.3,3840.2,0.01822798]
[1753634640630,3.35947,3840.3,3840.2,0.01822798]
[1753634641531,3.35947,3840.3,3839.8,0.19271586]
[1753634641532,0.52073,3839.9,3839.8,0.19271586]
[1753634641725,0.52073,3839.9,3839.2,0.0385]
[1753634641726,3.35962,3839.2,3839.1,3.2078]
[1753634641927,24.96162,3839.2,3839.1,3.2078]
[1753634642730,24.12912,3839.2,3839.1,3.4784]
[1753634642926,24.96162,3839.2,3839.1,3.2078]
[1753634643832,0.8446,3839.2,3839.1,3.99923]
[1753634644024,3.2078,3839.9,3839.1,3.4784]
[1753634644228,22.4516,3839.9,3839.8,0.56014]
[1753634644932,0.8446,3839.9,3839.8,0.56014]
[1753634645134,37.494,3840.2,3840.1,0.5601]
[1753634645328,0.52068,3840.2,3840.1,3.7679]
[1753634645529,22.14368,3840.2,3840.1,3.7679]
[1753634645732,1.36528,3840.2,3840.1,3.7679]
[1753634645935,22.4626,3840.2,3840.1,3.7679]
[1753634646232,21.618,3840.3,3840.2,0.52068]
[1753634646433,21.618,3840.3,3840.1,8.2472]
[1753634646434,4.50916,3841.3,3840.5,0.0394]
[1753634646629,1.36522,3840.7,3840.6,3.2472]
[1753634646830,0.52068,3840.3,3840.1,0.52069]
[1753634647030,0.52066,3840.4,3840.2,0.52067]
[1753634647233,0.52066,3840.4,3840.3,3.2078]
[1753634647530,1.36526,3840.4,3840.3,3.2078]
[1753634647930,1.36526,3840.4,3840.3,3.2473]
[1753634648240,2.52696,3840.4,3840.3,3.2473]
[1753634648829,1.36526,3840.4,3840.3,3.76797]
[1753634649031,0.8446,3840.4,3840.3,3.2473]
[1753634649435,0.8446,3840.5,3840.4,0.52065]
[1753634649734,0.8446,3840.5,3840.4,0.56015]
[1753634650331,0.8446,3840.5,3840.4,3.76795]
[1753634650633,2.8388,3840.5,3840.4,3.76795]
[1753634651538,0.52068,3840.3,3840.2,0.52068]
[1753634651731,2.52698,3840.3,3840.2,0.52068]
[1753634651932,0.8446,3840.2,3840.1,0.56019]
[1753634652431,0.8446,3840.2,3839.9,3.2078]
[1753634652432,2.0063,3840.0,3839.9,3.2473]
[1753634652638,21.606,3840.1,3839.5,0.0395]
[1753634652935,1.36535,3839.8,3839.7,0.52074]
[1753634653133,0.52075,3839.7,3839.6,3.2078]
[1753634653334,1.36535,3839.7,3839.6,3.2078]
[1753634653634,21.606,3839.7,3839.1,3.2078]
[1753634653840,3.35962,3839.2,3839.1,3.2078]
[1753634654033,24.96562,3839.2,3839.1,3.2078]
[1753634655535,1.1617,3839.4,3838.5,1.3023]
[1753634655834,3.2078,3839.5,3838.4,3.2078]
[1753634656138,21.608,3839.9,3839.8,3.20904]
[1753634656335,0.8446,3840.3,3839.9,1.30182]
[1753634656529,24.8158,3840.4,3840.3,0.52067]
[1753634656736,24.8158,3840.4,3840.3,3.20897]
[1753634657041,0.8446,3840.7,3840.6,1.0954]
[1753634657239,0.8446,3840.7,3840.6,1.61603]
[1753634657433,22.4526,3840.7,3840.6,1.61603]
[1753634657635,21.608,3840.7,3840.6,3.20893]
[1753634657830,0.8446,3841.1,3840.8,2.6883]
[1753634658040,21.608,3841.0,3840.9,2.6883]
[1753634658237,4.3695,3841.4,3840.9,2.6883]
[1753634658238,4.3695,3841.4,3841.1,0.52056]
[1753634658439,24.8148,3841.4,3841.3,3.20884]
[1753634658741,22.12752,3841.4,3841.3,3.20884]
[1753634658940,21.607,3841.4,3841.3,3.20884]
[1753634660734,0.52054,3841.3,3841.2,0.52054]
[1753634660939,23.6133,3841.4,3840.9,0.7995]
[1753634660940,1.1617,3841.0,3840.9,0.7995]
[1753634661240,2.8388,3841.0,3840.9,0.7995]
[1753634661444,3.35938,3841.0,3840.9,1.32008]
[1753634661656,3.35938,3841.0,3840.5,1.0954]
[1753634661657,0.52063,3840.6,3840.5,1.8949]
[1753634661850,0.52063,3840.6,3840.5,1.32014]
[1753634661851,3.35943,3840.6,3840.5,1.32014]
[1753634663342,0.52066,3840.5,3840.2,0.7995]
[1753634663543,0.52071,3840.0,3839.9,1.0954]
[1753634663735,2.8388,3840.3,3839.4,2.64339831]
[1753634663736,3.35954,3839.8,3839.4,2.64339831]
[1753634664042,0.52077,3839.6,3839.5,0.7995]
[1753634664236,3.35957,3839.6,3839.5,1.32028]
[1753634664640,0.52078,3839.5,3839.4,1.0954]
[1753634664841,0.8446,3839.3,3839.1,0.52082]
[1753634665034,2.19795,3839.1,3839.0,0.52085]
[1753634665240,2.8388,3839.1,3839.0,0.52085]
[1753634665544,2.8388,3839.1,3839.0,1.32035]
[1753634665741,2.52713,3839.1,3839.0,0.7995]
[1753634665945,3.2078,3839.5,3838.7,1.0954]
[1753634666140,3.2078,3839.5,3838.4,1.84389831]
[1753634666141,22.7647,3839.4,3838.8,1.0954]
[1753634666346,0.52086,3838.9,3838.8,1.61627]
[1753634666546,3.2078,3839.5,3838.6,3.2078]
[1753634666847,24.12909,3839.4,3839.3,0.7995]
[1753634667045,24.4408,3839.4,3838.9,1.0954]
[1753634667237,0.52081,3839.3,3839.2,0.52082]
[1753634667438,3.2078,3839.5,3839.4,0.52079]
[1753634667643,24.8098,3839.5,3839.4,3.20909]
[1753634667941,27.6775,3839.5,3839.4,0.52079]
[1753634668141,28.19828,3839.5,3839.4,0.52079]
[1753634668346,27.6775,3839.5,3839.4,0.52079]
[1753634668648,4.0589,3839.5,3839.4,2.47319]
[1753634668847,24.8118,3839.5,3839.4,2.47319]
[1753634669045,27.6795,3839.5,3839.4,0.52079]
[1753634669551,26.8241,3839.5,3839.4,2.47319]
[1753634669742,3.2078,3839.5,3839.4,3.29039]
[1753634669938,21.604,3839.8,3839.7,0.52075]
[1753634670151,21.604,3839.8,3839.7,3.29035]
[1753634670347,0.8511,3840.3,3840.2,0.52069]
[1753634670551,21.603,3840.9,3840.6,2.47303]
[1753634670753,6.0755,3840.7,3840.6,1.36033]
[1753634671053,2.8677,3840.7,3840.6,1.36033]
[1753634671452,2.0123,3840.7,3840.6,2.47303]
[1753634672455,5.2201,3841.1,3841.0,1.36028]
[1753634672751,26.8231,3841.1,3841.0,1.36028]
[1753634673250,2.8677,3841.0,3840.8,0.52059]
[1753634673456,1.7065,3840.7,3840.2,0.8397]
[1753634673754,0.5206,3840.9,3840.8,0.52059]
[1753634673957,22.1236,3840.9,3840.8,0.52059]
[1753634674248,3.38831,3840.8,3840.7,0.52061]
[1753634674453,2.8677,3840.8,3840.7,0.52061]
[1753634674649,3.3883,3840.8,3840.7,0.52061]
[1753634675453,2.8677,3840.8,3840.7,0.52061]
[1753634675847,3.3883,3840.8,3840.7,0.52061]
[1753634676053,3.38834,3840.7,3840.6,0.52063]
[1753634677151,2.0166,3840.6,3840.1,3.2078]
[1753634677456,0.52068,3840.3,3840.2,0.52067]
[1753634677653,0.52068,3840.2,3840.1,3.2078]
[1753634677852,3.38838,3840.2,3840.1,3.2078]
[1753634678054,0.52075,3839.7,3839.6,1.84389831]
[1753634678255,0.52077,3839.6,3839.5,1.84389831]
[1753634678456,2.8677,3839.6,3839.5,1.84389831]
[1753634678650,3.38847,3839.6,3839.5,1.84389831]
[1753634678954,0.8511,3839.8,3839.6,1.9524]
[1753634679154,24.13206,3839.7,3839.6,2.68359831]
[1753634679352,24.13206,3839.7,3839.1,2.29260605]
[1753634679353,0.52078,3839.5,3839.4,1.84389831]
[1753634679554,3.38848,3839.5,3839.4,1.84389831]
[1753634679757,1.68199,3839.4,3839.3,1.84389831]
[1753634679953,3.38849,3839.4,3839.3,1.84389831]
[1753634680159,23.6123,3839.4,3839.3,2.47321]
[1753634680659,21.6,3839.4,3839.3,3.29041]
[1753634681047,21.6,3839.4,3839.3,5.58301605]
[1753634681453,22.12081,3839.4,3839.3,0.52081]
[1753634681750,23.6123,3839.4,3839.3,1.36051]
[1753634681957,22.4511,3839.4,3839.3,2.47321]
[1753634682154,21.6,3839.4,3839.3,3.29041]
[1753634682557,2.53307,3839.6,3839.5,1.36048]
[1753634682861,3.2078,3840.0,3839.9,1.36043]
[1753634682862,5.2201,3840.0,3839.9,1.36043]
[1753634683063,24.98942,3840.0,3839.9,0.8397]
[1753634683253,0.52073,3839.9,3839.8,0.52073]
[1753634683560,3.38843,3839.9,3839.8,0.52073]
[1753634683860,0.8511,3839.7,3839.6,2.7696]
[1753634684060,1.37617,3839.6,3839.5,1.84643361]
[1753634684260,2.22728,3839.5,3839.4,3.2078]
[1753634684455,2.22728,3839.5,3839.4,3.72859]
[1753634684752,2.22728,3839.5,3839.0,2.29260605]
[1753634684753,3.38853,3839.1,3839.0,2.29260605]
[1753634684957,3.38853,3839.1,3838.9,2.29260605]
[1753634684958,0.52085,3839.0,3838.9,2.29260605]
[1753634685158,3.38855,3839.0,3838.9,2.29260605]
[1753634685655,24.98855,3839.0,3838.9,0.8397]
[1753634685855,23.28205,3839.0,3838.9,0.8397]
[1753634686156,24.13315,3839.0,3838.9,2.47326]
[1753634686357,0.52087,3838.8,3838.7,3.2078]
[1753634686553,3.38862,3838.5,3838.4,2.29260605]
[1753634686862,3.38863,3838.4,3838.3,2.29260605]
[1753634687358,3.38863,3838.4,3838.3,1.84894352]
[1753634687560,3.38864,3838.3,3838.2,1.84894352]
[1753634688056,3.38864,3838.3,3837.8,2.48542234]
[1753634688057,0.52097,3838.1,3838.0,0.96134352]
[1753634688255,3.2078,3838.5,3837.8,0.19281629]
[1753634688555,3.1352,3837.9,3837.8,0.19281629]
[1753634689155,24.7382,3837.9,3837.8,0.19281629]
[1753634689455,27.425,3837.9,3837.5,2.29260605]
[1753634689657,0.52105,3837.5,3837.4,2.29260605]
[1753634689857,0.52108,3837.3,3837.2,0.01824223]
[1753634690160,24.54548,3837.3,3837.2,0.01824223]
[1753634690347,2.4214,3837.3,3837.2,0.01824223]
[1753634690554,4.0589,3837.5,3837.4,0.52106]
[1753634690749,22.4531,3837.5,3837.4,2.47346]
[1753634690953,22.4531,3837.5,3837.4,3.29066]
[1753634691358,22.4531,3837.5,3837.4,2.47346]
[1753634691557,23.6143,3837.5,3837.4,2.47346]
[1753634692160,2.4214,3837.3,3837.2,0.53932223]
[1753634692357,0.8511,3837.7,3837.2,1.97064223]
[1753634692659,0.52101,3837.9,3837.6,0.52103]
[1753634692860,0.52101,3837.8,3837.7,2.7696]
[1753634693258,0.52101,3837.8,3837.7,1.9524]
[1753634693459,1.37211,3837.8,3837.7,1.9524]
[1753634693656,2.0123,3837.6,3837.2,0.01824223]
[1753634693856,2.53338,3837.3,3837.2,0.01824223]
[1753634694057,21.606,3837.5,3837.2,1.94814223]
[1753634694257,1.37217,3837.4,3837.3,1.9524]
[1753634694456,0.52108,3837.3,3837.2,0.01824223]
[1753634694655,2.94248,3837.3,3837.2,0.01824223]
[1753634695163,24.55048,3837.3,3837.2,0.01824223]
[1753634695860,24.55048,3837.3,3837.2,2.23e-06]
[1753634696061,0.5212,3836.4,3836.3,3.2078]
[1753634696257,24.1415,3836.4,3836.3,4.0475]
[1753634696458,2.94262,3836.3,3836.2,0.52123]
[1753634696653,2.94261,3836.3,3836.2,0.8397]
[1753634696853,2.4214,3836.3,3835.9,4.3205]
[1753634697055,2.09155,3836.0,3835.9,3.2078]
[1753634697355,0.52127,3835.9,3835.8,0.19291682]
[1753634697562,4.0589,3836.7,3836.6,0.52117]
[1753634697864,25.6669,3836.7,3836.6,2.48277]
[1753634698068,25.33696,3836.7,3836.6,3.28247]
[1753634698267,3.2078,3836.7,3836.6,3.28247]
[1753634698565,21.622,3836.7,3836.6,3.28247]
[1753634698866,2.3307,3837.2,3836.9,0.7977]
[1753634699066,1.4773,3837.0,3836.6,0.7997]
[1753634699263,2.46197,3836.6,3836.5,0.7977]
[1753634699760,0.8534,3836.8,3836.7,0.52116]
[1753634699963,0.8534,3836.8,3836.6,1.9616]
[1753634699964,0.5212,3836.4,3836.3,1.31891]
[1753634700159,0.52126,3836.0,3835.8,0.19291682]
[1753634700365,1.37467,3835.9,3835.8,0.71418682]
[1753634700562,0.8534,3836.5,3836.4,0.5212]
[1753634700764,2.60468,3838.4,3835.9,1.1639]
[1753634700765,1.0874,3837.6,3837.3,0.7977]
[1753634700960,2.46184,3837.6,3837.5,1.9616]
[1753634701162,24.8768,3837.7,3836.7,3.2078]
[1753634701365,0.8534,3837.1,3837.0,0.52111]
[1753634701560,0.3899,3837.4,3837.0,0.52111]
[1753634701561,0.52107,3837.4,3837.3,0.52108]
[1753634701765,0.8534,3837.6,3837.5,0.52105]
[1753634701963,0.8534,3837.6,3837.5,0.7977]
[1753634701964,23.10344,3837.6,3837.5,0.7977]
[1753634702160,2.46188,3837.3,3837.2,1.9616]
[1753634702567,2.46188,3837.3,3836.9,0.7977]
[1753634702568,1.9408,3837.0,3836.9,0.7977]
[1753634702763,2.46192,3837.0,3836.9,0.7977]
[1753634703160,1.9408,3837.0,3836.9,2.48273]
[1753634703371,21.732,3837.4,3837.0,0.52111]
[1753634703565,2.46189,3837.2,3837.1,0.7977]
[1753634703757,2.85179,3837.2,3837.1,0.7977]
[1753634704572,2.85179,3837.2,3837.1,1.31881]
[1753634704959,2.3307,3837.2,3837.1,1.31881]
[1753634705269,4.58225,3837.5,3837.4,1.9616]
[1753634705470,22.5744,3837.5,3837.4,2.48266]
[1753634705970,24.9158,3837.9,3837.8,3.28231]
[1753634706174,25.7692,3837.9,3837.8,2.48261]
[1753634706464,0.52094,3838.4,3837.9,1.9616]
[1753634706770,25.7692,3838.6,3838.5,2.48252]
[1753634706967,0.8534,3838.6,3838.5,2.48252]
[1753634707170,4.58202,3839.3,3839.2,1.31852]
[1753634707369,0.3899,3839.1,3838.8,0.52087]
[1753634707671,0.91074,3839.1,3838.9,0.7977]
[1753634707873,4.2952,3839.7,3839.1,1.9616]
[1753634708172,0.62988789,3839.6,3839.5,2.48238]
[1753634708472,0.62988789,3839.6,3839.5,3.28208]
[1753634709263,0.2,3839.9,3839.8,2.48434]
[1753634709566,1.41349509,3840.3,3840.2,3.28198]
[1753634709772,0.018,3840.3,3840.2,6.48978]
[1753634710171,1.86052335,3840.9,3840.6,1.1897]
[1753634710371,3.16858977,3841.3,3841.2,2.48215]
[1753634710571,0.8534,3841.3,3841.2,4.28322132]
[1753634710772,0.8534,3841.3,3841.2,4.80377132]
[1753634711572,0.8534,3841.3,3841.2,4.52605]
[1753634711769,1.9408,3841.3,3841.2,4.52605]
[1753634712371,2.46134,3841.3,3841.2,4.52605]
[1753634712674,1.9408,3841.3,3841.2,4.52605]
[1753634712870,0.52059,3840.9,3840.8,3.2078]
[1753634713068,3.2078,3841.7,3840.4,0.52065]
[1753634713069,1.9408,3840.5,3840.4,0.52065]
[1753634713270,1.9408,3840.5,3840.4,1.31835]
[1753634713574,1.0874,3841.0,3840.4,0.326]
[1753634713768,22.6314,3841.2,3840.7,3.2078]
[1753634713769,0.52057,3841.1,3840.7,3.2078]
[1753634713963,0.8534,3841.3,3841.1,0.84655]
[1753634714270,1.37394,3841.3,3841.2,1.1237]
[1753634714467,0.52058,3841.0,3840.8,0.5206]
[1753634714667,0.8534,3841.1,3840.6,3.2078]
[1753634714869,0.52063,3840.6,3840.5,0.7977]
[1753634715071,3.25243,3840.6,3840.5,0.7977]
[1753634715366,0.52063,3840.6,3840.5,1.1956]
[1753634715564,0.8534,3840.8,3840.3,1.1956]
[1753634715769,3.25242,3840.7,3840.6,3.2078]
[1753634716069,1.60806,3840.4,3840.3,1.1956]
[1753634716275,2.46146,3840.4,3840.3,4.0055]
[1753634716667,1.9408,3840.4,3840.3,4.0055]
[1753634716873,0.8534,3840.4,3840.3,4.92407]
[1753634717478,1.0874,3841.0,3840.4,1.1956]
[1753634717677,0.52062,3840.8,3840.7,0.52062]
[1753634717881,2.46142,3840.8,3840.7,1.31832]
[1753634718682,2.4614,3840.8,3840.7,1.71622]
[1753634718978,0.8534,3840.8,3840.7,1.71622]
[1753634719481,2.46137,3841.1,3841.0,1.31826]
[1753634720579,3.25237,3841.1,3841.0,0.7977]
[1753634720875,1.9408,3840.8,3840.7,0.52061]
[1753634721077,2.7318,3840.8,3840.7,0.52061]
[1753634721272,1.0874,3841.7,3840.7,1.1956]
[1753634721473,2.05610728,3841.9,3841.7,0.7977]
[1753634721474,1.0874,3841.8,3841.7,0.7977]
[1753634721678,1.0874,3841.8,3841.7,1.31818]
[1753634722588,1.2874,3841.9,3841.8,1.31817]
[1753634723185,1.2874,3841.9,3841.8,2.51577]
[1753634724681,0.2,3841.9,3841.8,2.51577]
[1753634728488,2.0291,3842.7,3842.6,0.52036]
[1753634728689,2.8627,3842.7,3842.6,1.38366]
[1753634728990,2.0291,3842.7,3842.6,1.38366]
[1753634729193,2.0291,3842.7,3842.6,2.64126]
[1753634729383,2.8627,3842.7,3842.6,0.52036]
[1753634729591,3.38309,3842.5,3842.4,0.52037]
[1753634729886,0.52042,3842.3,3841.9,3.2078]
[1753634730090,0.52042,3842.3,3842.2,0.52039]
[1753634730289,0.5204,3842.4,3842.3,0.52037]
[1753634730490,3.3831,3842.4,3842.3,0.52037]
[1753634731088,2.8627,3842.4,3842.3,0.52037]
[1753634731794,2.8627,3842.3,3841.9,3.2078]
[1753634731994,2.8627,3842.2,3842.1,0.52042]
[1753634732194,2.8627,3842.2,3841.9,3.2078]
[1753634732195,0.52043,3842.1,3842.0,0.52043]
[1753634732391,3.38313,3842.1,3842.0,0.52043]
[1753634732590,2.8627,3842.1,3842.0,0.52043]
[1753634732988,2.8627,3842.1,3841.9,3.2078]
[1753634733192,1.35401,3842.3,3842.2,0.52041]
[1753634733392,1.30089,3842.7,3841.9,3.2078]
[1753634733588,0.8655,3842.0,3841.9,3.2078]
[1753634733794,1.6991,3842.0,3841.9,3.72825]
[1753634734287,2.8627,3842.0,3841.9,3.72825]
[1753634734692,2.8627,3842.0,3841.9,0.52045]
[1753634735884,2.8627,3842.0,3841.9,1.38375]
[1753634736095,2.0291,3842.0,3841.9,5.84915]
[1753634736898,2.8627,3842.0,3841.9,3.72825]
[1753634737093,1.6991,3842.5,3842.4,0.52039]
[1753634737791,0.5204,3842.4,3842.3,0.52039]
[1753634737996,3.3831,3842.4,3842.3,0.52039]
[1753634738390,2.8627,3842.4,3842.3,0.52039]
[1753634738791,3.38309,3842.4,3842.3,0.52039]
[1753634739197,3.38312,3842.2,3842.1,0.52041]
[1753634739394,2.8627,3842.2,3842.1,0.52041]
[1753634739589,1.30091,3842.6,3841.5,4.0544]
[1753634739791,1.38595,3842.0,3841.9,0.52045]
[1753634740097,3.38315,3842.0,3841.9,0.52045]
[1753634740893,2.8627,3842.0,3841.9,0.52045]
[1753634741497,2.8627,3842.0,3841.9,1.38375]
[1753634741892,2.8627,3841.9,3841.8,0.52046]
[1753634742092,3.3832,3841.6,3841.5,3.2078]
[1753634742899,3.38325,3841.2,3841.1,3.72836]
[1753634743494,2.8627,3841.2,3841.1,3.72836]
[1753634743698,3.38325,3841.2,3841.1,3.72836]
[1753634744001,3.38325,3841.2,3841.1,3.2078]
[1753634745292,5.32985,3841.2,3841.1,3.72836]
[1753634745600,5.32985,3841.2,3841.1,0.52056]
[1753634746399,1.3594,3840.7,3840.6,4.169]
[1753634746593,4.8093,3840.7,3840.6,4.84353]
[1753634746995,4.8093,3840.7,3840.6,6.36443]
[1753634748294,3.3885,3840.7,3840.6,7.62203]
[1753634748699,3.3885,3840.7,3840.6,4.41423]
[1753634748895,4.8093,3840.7,3840.6,7.62203]
[1753634749590,3.9757,3840.7,3840.6,7.62203]
[1753634749799,3.3885,3840.7,3840.6,7.62203]
[1753634751595,1.9172,3841.3,3841.2,0.6576]
[1753634751801,3.9757,3841.3,3841.2,4.41415]
[1753634752190,1.1636,3841.3,3841.2,4.41415]
[1753634752502,2.2249,3841.6,3841.5,4.41411]
[1753634752696,2.8121,3841.6,3841.5,4.41411]
[1753634752900,4.8093,3841.6,3841.5,4.41411]
[1753634753401,4.8093,3841.6,3841.5,1.3968]
[1753634753402,5.3298,3841.6,3841.5,1.3968]
[1753634753604,4.8093,3841.6,3841.5,0.52051]
[1753634753804,5.3298,3841.6,3841.5,0.52051]
[1753634753997,1.3594,3840.6,3840.5,5.8271]
[1753634754198,3.3885,3840.6,3840.5,7.21104]
[1753634755098,4.8093,3841.5,3841.4,0.52052]
[1753634755494,1.3408,3841.1,3841.0,0.8633]
[1753634755696,3.2078,3841.9,3840.8,1.6357]
[1753634755697,1.9466,3840.9,3840.8,1.6357]
[1753634755898,4.8093,3840.9,3840.8,1.6357]
[1753634757397,2.46722,3840.7,3840.4,1.2576]
[1753634757598,4.8368,3840.4,3840.3,4.3229]
[1753634757900,1.3531,3839.9,3839.8,0.76591586]
[1753634758098,5.30873,3839.9,3839.8,0.19271586]
[1753634758500,1.30171,3840.3,3839.8,2.45755586]
[1753634758501,1.1628,3840.2,3839.8,2.45755586]
[1753634758700,2.0015,3840.6,3840.2,1.7441]
[1753634758995,4.788,3840.6,3840.5,3.08834]
[1753634759400,2.7865,3840.4,3840.3,0.52067]
[1753634759601,1.3285,3840.4,3840.3,4.30667]
[1753634759912,0.7838,3840.4,3840.3,4.30667]
[1753634760102,1.1628,3840.4,3840.3,4.30667]
[1753634761507,2.0015,3840.4,3840.3,4.30667]
[1753634761802,3.33,3840.7,3840.6,4.30663]
[1753634762398,2.8902,3841.1,3840.8,3.786]
[1753634762698,0.7838,3840.7,3840.6,3.2078]
[1753634762907,5.3087,3840.1,3840.0,3.2078]
[1753634763807,4.788,3840.1,3840.0,3.72851]
[1753634764009,5.3087,3840.1,3840.0,3.2078]
[1753634765804,2.41853,3839.9,3839.8,0.19271586]
[1753634766011,5.30873,3839.9,3839.8,0.19271586]
[1753634766703,5.30885,3839.0,3838.9,3.2078]
[1753634766905,3.41105,3839.0,3838.9,3.2078]
[1753634768404,2.0015,3839.0,3838.6,0.00428485]
[1753634768608,21.612,3839.3,3838.6,0.00428485]
[1753634768609,3.41109,3838.7,3838.6,0.00428485]
[1753634769305,25.02509,3838.7,3838.6,0.00428485]
[1753634770112,25.02509,3838.7,3838.6,0.82788485]
[1753634770312,2.8902,3838.7,3838.6,1.34878485]
[1753634770606,3.2078,3839.4,3838.6,1.34878485]
[1753634770607,2.0015,3839.5,3838.8,2.0419]
[1753634770808,2.0015,3839.5,3839.4,0.52079]
[1753634771011,2.0015,3839.5,3839.4,2.56269]
[1753634771408,1.1628,3839.5,3839.4,2.56269]
[1753634771613,21.616,3839.6,3839.5,0.52078]
[1753634771808,3.2078,3839.8,3839.7,0.52075]
[1753634772010,59.116,3840.2,3839.7,3.2078]
[1753634772214,23.6175,3840.4,3840.3,2.56257]
[1753634772807,2.0015,3840.4,3840.3,2.56257]